Cogmind - Beta 17 @@@ ROGUE MODE // 2026.08.10 @ 13:38:47 Player: 4R-ZE3 Result: Destroyed by P-70 Sage with High-powered Shock Rifle Performance ------------- Evolutions (6) 3000 Regions Visited (16) 3200 Robots Destroyed (279) 1395 Value Destroyed (11739) 11739 Prototype IDs (20) 400 Alien Tech Used (0) 0 Bonus (3348) 3348 TOTAL SCORE: 23082 Bonus ------- High Alert Combat Kills 642 Follower Combat Kills 1140 Network Hubs Disabled 200 Met Zhirov 300 Built Enhanced Grunts 300 Met R17 at Cetus 500 Read Decrypted Archives 300 Friendly Fire -34 Cogmind --------- Core Integrity 0/1150 Matter 300/300 Energy 98/100 System Corruption 9% Temperature Cool (0) Movement Core (50) Location -4/Factory Parts ------- > --- POWER (2) -------- (None) > --- PROPULSION (6) --- (None) > --- UTILITY (7) ------ (None) > --- WEAPON (4) ------- (None) > --- INVENTORY (5) ---- Flexi-carbon Leg Field Laser Plasma Rifle Wave Gun Heavy Phase Cannon Peak State ------------ > --- POWER ------------ Quantum Reactor Quantum Reactor > --- PROPULSION ------- Centrium Heavy Treads Centrium Heavy Treads Centrium Heavy Treads > --- UTILITY ---------- Advanced Heat Sink Huge Storage Unit Improved Sensor Array Advanced Signal Interpreter Centrium Medium Armor Plating Centrium Medium Armor Plating > --- WEAPON ----------- Force Rifle Advanced Variable Charge Gun Advanced Variable Charge Gun > --- INVENTORY -------- Centrium Heavy Treads Centrium Heavy Treads Target Analyzer Improved Particle Charger Centrium Medium Armor Plating Focal Shield Thermal Shield Hacking Suite Force Rifle Force Rifle Force Rifle Advanced Variable Charge Gun Advanced Variable Charge Gun Advanced Variable Charge Gun Rocket Launcher [Rating: 137] Favorites ----------- Power Heavy Ion Engine Engine Heavy Ion Engine Power Core Reinforced Fission Core Reactor Quantum Reactor Propulsion Advanced Treads Treads Advanced Treads Leg Enhanced Flexi-carbon Leg Wheel Wheel Utility Huge Storage Unit Device Improved Heat Sink Storage Huge Storage Unit Processor Experimental Targeting Computer Hackware Hacking Suite Protection Centrium Medium Armor Plating Weapon Force Rifle Energy Gun Force Rifle Energy Cannon Heavy Phase Cannon Ballistic Gun Light Assault Rifle Launcher Rocket Launcher Impact Weapon Heavy Mace Build | -11 -10 -10 -9 -9 -8 -8 -8 -6 -6 -6 -6 -6 -5 -4 -4 -4 ------- Run | Yrd Mat Min Mat Min Mat Sto Rec Fac Ext Cet Arc Hub Fac Fac Was Fac Slots Evolved 12 | . . . 2 . 2 . . 4 . . . . 2 2 . . Power 1 | . . . . . . . . . . . . . 1 . . . Propulsion 4 | . . . 1 . 1 . . 2 . . . . . . . . Utility 5 | . . . . . 1 . . 2 . . . . 1 1 . . Weapon 2 | . . . 1 . . . . . . . . . . 1 . . Parts Attached 211 | 6 13 1 10 1 8 11 . 14 13 10 . 6 62 22 12 22 Power 21 | 1 1 . 3 . 1 1 . . 1 1 . 1 8 2 1 . Engine 8 | 1 1 . 2 . 1 1 . . 1 . . . 1 . . . Core 6 | . . . 1 . . . . . . . . . 5 . . . Reactor 7 | . . . . . . . . . . 1 . 1 2 2 1 . Propulsion 68 | 2 6 . 4 . 2 1 . 5 8 3 . 2 17 5 4 9 Treads 44 | 2 4 . 3 . 2 1 . 5 8 3 . 2 5 4 4 1 Leg 8 | . . . . . . . . . . . . . . 1 . 7 Wheel 16 | . 2 . 1 . . . . . . . . . 12 . . 1 Hover . | . . . . . . . . . . . . . . . . . Flight . | . . . . . . . . . . . . . . . . . Utility 73 | 1 3 . 1 . 2 1 . 6 4 3 . 1 27 10 4 10 Device 47 | . 2 . 1 . 2 . . 5 3 . . . 16 8 4 6 Storage 3 | 1 1 . . . . . . . . . . . 1 . . . Processor 5 | . . . . . . 1 . . . . . . 3 . . 1 Hackware 2 | . . . . . . . . . . . . . 1 . . 1 Protection 16 | . . . . . . . . 1 1 3 . 1 6 2 . 2 Artifact . | . . . . . . . . . . . . . . . . . Weapon 49 | 2 3 1 2 1 3 8 . 3 . 3 . 2 10 5 3 3 Energy Gun 41 | 1 2 1 2 . 3 6 . 3 . 3 . 2 8 4 3 3 Energy Cannon 3 | . . . . . . 1 . . . . . . 1 1 . . Ballistic Gun 2 | 1 1 . . . . . . . . . . . . . . . Ballistic Cannon . | . . . . . . . . . . . . . . . . . Launcher 2 | . . . . 1 . 1 . . . . . . . . . . Special Weapon . | . . . . . . . . . . . . . . . . . Impact Weapon 1 | . . . . . . . . . . . . . 1 . . . Slashing Weapon . | . . . . . . . . . . . . . . . . . Piercing Weapon . | . . . . . . . . . . . . . . . . . Special Melee Weapon . | . . . . . . . . . . . . . . . . . Unidentified Prototypes 18 | . . . 1 . 1 6 . 2 . 3 . . 1 1 . 3 Corrupted Parts 6 | . . . . . . . . . . 2 . 4 . . . . System Corruption 27 | . . . . . . . . . . 7 . 20 . . . . Parts Lost 84 | . 1 . 5 . 3 2 . . . . . 3 43 5 . 22 Power 12 | . . . 1 . . 1 . . . . . . 6 1 . 3 Propulsion 27 | . . . 2 . . 1 . . . . . . 16 . . 8 Utility 24 | . . . 1 . . . . . . . . 3 13 1 . 6 Weapon 21 | . 1 . 1 . 3 . . . . . . . 8 3 . 5 Highest Loss Streak 14 | . 1 . 2 . 1 1 . . . . . 2 14 2 . 12 To Critical Strikes 1 | . . . . . . . . . . . . . 1 . . . Average Backups 20 | 2 7 14 24 25 23 24 24 24 24 24 23 22 18 23 20 18 Power 1 | . . . . 2 3 4 4 3 2 1 2 1 . . . . Propulsion 4 | 1 3 8 9 7 6 6 6 4 5 3 2 2 2 6 4 2 Utility 8 | . 1 3 8 8 5 6 7 8 9 10 11 10 10 9 10 9 Weapon 6 | . 1 2 6 7 7 7 7 7 8 8 8 7 5 6 5 6 Tool/Special . | . . . . . . . . . . . . . . . . . Unused Backups 72 | . 8 . 7 1 3 3 1 11 4 10 . . . 6 7 11 Power 5 | . 1 . . . . . . 2 . 2 . . . . . . Propulsion 24 | . 2 . 4 1 . . . 3 . 4 . . . 4 5 1 Utility 19 | . 1 . 1 . 2 . 1 3 2 1 . . . 2 1 5 Weapon 23 | . 3 . 2 . 1 3 . 3 2 3 . . . . 1 5 Tool/Special 1 | . 1 . . . . . . . . . . . . . . . Average Slot Usage (%) 90 | . 98 100 99 100 99 99 100 99 100 81 80 79 83 82 82 74 Engine 4 | . 14 14 9 11 9 9 9 6 6 . . . . . . . Core 1 | . . . 1 . . . . . . . . . 4 5 5 3 Reactor 2 | . . . . . . . . . . 5 6 6 5 3 5 3 Treads 22 | . 25 . 16 33 35 36 36 39 40 21 20 20 12 14 15 12 Wheel 3 | . 2 28 16 . . . . . . . . . 7 . . . Device 14 | . 13 14 11 11 18 15 9 12 13 11 6 6 13 15 24 20 Storage 7 | . 14 14 11 11 9 9 9 6 6 6 6 6 5 5 5 4 Processor 3 | . . . . . . 2 9 6 6 6 6 5 3 5 5 4 Protection 3 | . . . . . . . . 5 6 7 13 13 7 9 . . Energy Gun 21 | . 17 28 33 32 26 26 27 20 20 20 20 19 16 19 21 15 Peak Build Rating 137 | 6 11 12 25 26 35 39 39 68 74 127 127 129 137 116 115 123 Average Rating 70 | 5 9 11 20 25 31 37 39 61 67 106 127 126 99 106 110 106 On Entrance 58 | . 6 11 12 25 26 35 39 39 68 74 127 127 112 66 113 111 Avg Prop Armor Cover (%) 6 | . . . . . . . . . . . . . 6 . . 5 Naked Turns 15 | . . . . . . . . . . . . . . . . 15 Heaviest Build 151 | 14 91 92 98 98 99 99 98 109 115 131 131 138 151 151 144 149 Greatest Support 240 | 40 40 20 66 66 88 88 86 152 166 240 240 240 240 210 215 215 Greatest Overweight (x) 28 | 2 9 4 3 1 1 1 1 . . . . . 13 2 . 28 Average Overweight (x) . | . . 4 2 1 1 1 1 . . . . . 1 . . . Largest Inventory Capacity 25 | 8 25 25 25 25 25 25 25 25 25 25 25 25 25 25 25 25 Average Capacity 23 | 7 9 25 25 25 25 25 25 25 25 25 25 25 25 25 25 24 Most Carried 25 | 4 11 18 25 25 25 25 25 25 25 25 25 25 25 25 25 25 Average Carried 21 | 2 7 14 24 24 23 24 24 24 24 24 25 24 19 24 24 23 Final Capacity 25 | 8 25 25 25 25 25 25 25 25 25 25 25 25 25 25 25 5 Final Carried 25 | 4 11 18 25 25 25 24 25 25 25 25 25 21 25 25 24 5 Class Distribution -------------------- 34% | Scavenger-Tank 31% | Gunner 10% | Scavenger-Gunner 9% | Mutant 8% | Scavenger-Skirmisher 5% | Scavenger-Mutant Dominant Class ---------------- Mutant | -10/Materials Scavenger-Mutant | -10/Mines Gunner | -9/Materials Gunner | -9/Mines Gunner | -8/Materials Gunner | -8/Storage Gunner | -8/Recycling Gunner | -6/Factory Scavenger-Gunner | -6/Extension Scavenger-Tank | -6/Cetus Scavenger-Tank | -6/Archives Scavenger-Tank | -6/Hub_04(d) Scavenger-Tank | -5/Factory Scavenger-Tank | -4/Factory Scavenger-Skirmisher | -4/Waste Scavenger-Tank | -4/Factory Resources | -11 -10 -10 -9 -9 -8 -8 -8 -6 -6 -6 -6 -6 -5 -4 -4 -4 ----------- Run | Yrd Mat Min Mat Min Mat Sto Rec Fac Ext Cet Arc Hub Fac Fac Was Fac Matter Collected 3853 | 225 324 17 110 . 153 152 43 167 211 187 . 101 987 404 204 568 Remotely . | . . . . . . . . . . . . . . . . . Salvage Created 16033 | . 888 126 804 144 667 888 276 506 837 280 . 783 4894 1173 1508 2259 Parts 634 | . 50 7 43 23 25 34 5 30 57 18 . 42 188 39 14 59 Haulers Intercepted 16 | . 2 . 4 . . 2 . 1 . . . . 3 1 . 3 Recyclers Shooed 20 | . 1 . . . . 6 . 1 . . . . 6 4 . 2 Parts Field Recycled . | . . . . . . . . . . . . . . . . . Retrieved Matter . | . . . . . . . . . . . . . . . . . Parts Self-Destructed . | . . . . . . . . . . . . . . . . . Prevented . | . . . . . . . . . . . . . . . . . Parts Restored . | . . . . . . . . . . . . . . . . . Kills | -11 -10 -10 -9 -9 -8 -8 -8 -6 -6 -6 -6 -6 -5 -4 -4 -4 ------- Run | Yrd Mat Min Mat Min Mat Sto Rec Fac Ext Cet Arc Hub Fac Fac Was Fac Combat Hostiles Destroyed 215 | . 19 3 12 10 12 12 5 4 13 3 . 7 53 18 6 38 Melee 7 | . . . . . . . . . . . . 1 2 . . 4 Guns 169 | . 19 3 9 7 12 11 4 4 13 3 . 6 44 14 1 19 Cannons 1 | . . . . . . . . . . . . . . . . 1 AOE 5 | . . . . 3 . . . . . . . . . . . 2 Classes Destroyed 18 | . 4 1 2 . 2 . . 1 1 . . 1 4 . 1 1 Worker 15 | . . . . . . . . . . . . 5 8 . . 2 Builder 11 | . . . 1 1 . . . . 1 . . 2 4 1 . 1 Hauler 16 | . 2 . 4 . . 2 . 1 . . . . 3 1 . 3 Recycler 13 | . 1 . . . 1 3 . 1 . . . 1 6 . . . Mechanic 1 | . . . . . . . . . . . . . 1 . . . Operator 1 | . . . . . . . . . . . . . 1 . . . Watcher 6 | . . . 1 . . . . . 1 1 . 1 1 . . 1 Swarmer 33 | . 2 1 . 10 . 1 . . 5 . . 2 4 3 . 5 Saboteur 1 | . . . . . . . . . . . . . 1 . . . Grunt 90 | . 17 . 5 . 8 7 1 . 3 . . 3 20 6 . 20 Brawler 6 | . . . . . 1 1 . . . . . . 3 . . 1 Duelist 5 | . . . . . . . . . . . . . 3 1 . 1 Sentry 33 | . . 2 7 . 2 3 4 2 3 . . 1 6 1 . 2 Hunter 6 | . . . . . 1 . . . . . . . 5 . . . Programmer 26 | . . . . . . . . 2 . . . 1 11 7 . 5 Heavy 4 | . . . . . . . . . . . . . . . . 4 Behemoth 2 | . . . . . . . . . 2 . . . . . . . Compactor 6 | . . . . . . . . . . . . . . . 6 . Cetus Guard 3 | . . . . . . . . . . 3 . . . . . . Enhanced Grunt 1 | . . . . . . . . . . . . 1 . . . . Best Kill Streak 8 | . 4 2 4 4 3 3 2 2 3 2 . 6 6 7 2 8 Combat Bots Only 7 | . 4 2 3 4 3 3 2 1 3 2 . 2 6 7 2 6 Max Kills in Single Turn 5 | . 1 1 1 3 1 1 1 2 3 1 . 4 5 1 1 2 Gunslinging 2 | . . . . 1 . . . . 2 . . . 1 . . 1 Exploded 3 | . . . . 3 . . . . . . . . . . . 2 Melee 1 | . . . . . . . . . . . . 1 1 . . 1 Uniques/NPCs Destroyed . | . . . . . . . . . . . . . . . . . Combat | -11 -10 -10 -9 -9 -8 -8 -8 -6 -6 -6 -6 -6 -5 -4 -4 -4 -------- Run | Yrd Mat Min Mat Min Mat Sto Rec Fac Ext Cet Arc Hub Fac Fac Was Fac Hostile Shots Fired 1790 | . 91 17 44 30 56 67 15 58 88 37 . 121 481 151 . 534 Missed 436 | . 23 4 14 7 19 17 3 32 41 7 . 22 90 28 . 129 Hits 1354 | . 68 13 30 23 37 50 12 26 47 30 . 99 391 123 . 405 Melee 32 | . . . . . . . . . . . . 14 15 . . 3 Projectile 1322 | . 68 13 30 23 37 50 12 26 47 30 . 85 376 123 . 402 AOE 1 | . . . . . . . . . . . . . . 1 . . Critical Strikes 81 | . . . 5 . 3 . . . . 4 . 5 28 7 . 29 Actively Blocked 23 | . . . . . . . . . . . . . . . . 23 Part Disruptions 1 | . . . . . . . . . . . . . 1 . . . Damage Taken 24788 | . 759 153 434 186 569 734 175 243 677 762 . 2409 7637 2108 . 7942 Core 2424 | . 145 38 72 28 149 73 15 28 62 27 . 145 482 119 . 1041 Absorbed by Shields 304 | . . . . . . . . . . 101 . . . . . 203 Reduced by Siege Mode 960 | . . . . . . . . . . 87 . . 298 202 . 373 Ignored by Resistances 965 | . . . . . . . . 16 9 . . . 156 354 . 430 Core Remaining (%) 62 | 100 . 26 . 75 . . 56 . . . . 69 51 . . . Volleys Fired 710 | . 78 7 38 14 34 46 10 14 29 15 . 18 207 79 27 94 Largest 4 | . 2 2 3 3 3 3 3 3 3 3 . 3 3 4 4 4 Hottest 481 | . 115 115 177 177 177 175 166 240 240 240 . 240 400 326 481 370 Shots Fired 1838 | . 148 14 111 36 98 126 30 42 85 44 . 53 518 174 100 259 Gun 1801 | . 148 14 111 33 98 126 30 42 85 44 . 53 518 172 100 227 Cannon 29 | . . . . . . . . . . . . . . 2 . 27 Launcher 8 | . . . . 3 . . . . . . . . . . . 5 Special . | . . . . . . . . . . . . . . . . . Kinetic 69 | . 69 . . . . . . . . . . . . . . . Thermal 1761 | . 79 14 111 33 98 126 30 42 85 44 . 53 518 174 100 254 Explosive 8 | . . . . 3 . . . . . . . . . . . 5 Electromagnetic . | . . . . . . . . . . . . . . . . . Robot Hit Streak 44 | . 14 12 22 6 11 24 18 19 20 25 . 5 21 20 44 25 Robot Miss Streak 5 | . 5 2 2 3 2 3 1 2 2 1 . 5 5 5 2 5 Penetration Max . | . . . . . . . . . . . . . . . . . Secondary Targets 39 | . . 2 . 2 1 1 . . 3 2 . 1 12 3 . 12 Max Gunslinging Chain 2 | . . 1 . 1 1 1 . . 2 1 . 1 1 1 . 2 Capacitor 12 | . . . . . . . . . . . . . . 12 . . Shots Hit Robots 1298 | . 98 12 77 21 71 86 26 27 57 39 . 24 359 110 88 203 Core Hits 540 | . 41 5 26 11 31 30 8 10 23 14 . 27 132 44 13 125 Critical Kills 13 | . . . . . . . . 1 2 1 . 1 8 . . . Critical Parts Destroyed 16 | . 1 . . . . . . . 3 2 . 1 9 . . . Critical Strikes 100 | . 5 . 6 2 3 7 3 1 5 3 . 2 30 8 11 14 Burn 69 | . 4 . 6 2 3 7 3 . . . . . 11 8 11 14 Destroy 28 | . 1 . . . . . . 1 5 3 . 2 16 . . . Smash 3 | . . . . . . . . . . . . . 3 . . . Melee Attacks 22 | . . . . . . . . . . . . . 22 . . . Impact 22 | . . . . . . . . . . . . . 22 . . . Slashing . | . . . . . . . . . . . . . . . . . Piercing . | . . . . . . . . . . . . . . . . . Sneak Attacks 7 | . . . . . . . . . . . . . 7 . . . Combat Hostiles . | . . . . . . . . . . . . . . . . . Follow-up Attacks . | . . . . . . . . . . . . . . . . . Damage Inflicted 33110 | . 1200 166 1167 454 1060 1538 513 696 1542 936 . 1218 10523 3219 2116 6762 Guns 29111 | . 1200 166 1167 342 1060 1538 513 696 1542 936 . 738 9275 3084 2116 4738 Cannons 250 | . . . . . . . . . . . . . . . . 250 Explosions 1763 | . . . . 112 . . . . . . . 466 328 135 . 722 Melee 920 | . . . . . . . . . . . . . 920 . . . Ramming 1066 | . . . . . . . . . . . . 14 . . . 1052 Kinetic 412 | . 412 . . . . . . . . . . . . . . . Thermal 28949 | . 788 166 1167 342 1060 1538 513 696 1542 936 . 738 9275 3084 2116 4988 Explosive 1162 | . . . . 112 . . . . . . . . 328 . . 722 Electromagnetic 601 | . . . . . . . . . . . . 466 . 135 . . Impact 920 | . . . . . . . . . . . . . 920 . . . Slashing . | . . . . . . . . . . . . . . . . . Piercing . | . . . . . . . . . . . . . . . . . Highest Corruption 41 | . 1 1 . . . 2 3 3 4 11 11 41 13 7 7 9 Average Corruption 4 | . 1 1 . . . 2 2 1 3 10 11 12 6 4 5 2 Corruption Purged 23 | . . . . . . . . . . . . . 10 4 5 4 Corruption Blocked . | . . . . . . . . . . . . . . . . . Effects 276 | . 6 1 . . . 6 25 8 33 16 2 20 96 20 14 29 Message Errors 49 | . . . . . . . 7 1 7 1 . 3 19 3 3 5 Matter Fused 84 | . 2 1 . . . 2 7 1 10 7 1 6 25 8 5 9 Heat Flow Errors 33 | . 2 . . . . 1 1 2 4 1 . 1 13 1 2 5 Energy Discharges 31 | . 1 . . . . 2 2 . 2 2 1 2 12 2 1 4 Parts Rejected 3 | . . . . . . . . . . . . . 3 . . . Parts Fused 5 | . . . . . . 1 . . 2 . . . . 1 . 1 Data Loss (minor) 26 | . 1 . . . . . 6 2 3 . . 3 7 1 1 2 Data Loss (major) 14 | . . . . . . . . . 1 4 . 1 5 2 . 1 Misfires 11 | . . . . . . . . 1 2 . . . 6 1 . 1 Alerts 6 | . . . . . . . 2 . 1 . . 1 1 1 . . Misdirections 4 | . . . . . . . . . . . . 3 1 . . . Weapon Failures 10 | . . . . . . . . 1 1 1 . . 4 . 2 1 Overload Shots 11 | . . . . . . . . . . . . . 7 . 4 . Effects 1 | . . . . . . . . . . . . . 1 . . . Short Circuit 1 | . . . . . . . . . . . . . 1 . . . Overflow Damage 376 | . . . . . . . . . . . . 4 363 . . 9 Projectiles . | . . . . . . . . . . . . . . . . . Explosions 94 | . . . . . . . . . . . . 4 90 . . . Melee 282 | . . . . . . . . . . . . . 273 . . 9 Knockbacks 18 | . . . . . . . . . . . . . 7 . . 11 Impact 18 | . . . . . . . . . . . . . 7 . . 11 Kinetic . | . . . . . . . . . . . . . . . . . Secondary . | . . . . . . . . . . . . . . . . . Self-Inflicted Damage 185 | . . . . . . . . . . . . 98 67 20 . . Shots 3 | . . . . . . . . . . . . 1 1 1 . . Rammed 41 | . . . . . . . . . . . . 1 . . . 40 Targets Rammed 130 | . . . . . . . . . . . . 2 . . . 128 Kicked 85 | . . . . . . . . . . . . . . . . 85 Crushed 4 | . . . . . . . . . . . . 1 . . . 3 Highest Temperature 473 | . 262 96 314 309 171 331 201 306 286 196 . 319 473 335 192 363 Average Temperature 116 | . 73 43 105 137 48 75 67 100 99 119 . 128 149 133 86 97 Received Heat Transfer 6246 | . 378 36 255 . 333 351 72 54 177 27 . 457 2044 366 . 1696 Effects 25 | . 1 . 3 1 . 1 . . . . . 1 12 3 . 3 Shutdowns 4 | . . . . . . . . . . . . . 3 . . 1 Energy Bleed 7 | . . . 1 . . 1 . . . . . . 3 1 . 1 Interference 13 | . 1 . 2 1 . . . . . . . 1 5 2 . 1 Short Circuit 1 | . . . . . . . . . . . . . 1 . . . Siege Activations 32 | . . . . . . . . . . 1 . 1 10 7 4 9 Total Turns 669 | . . . . . . . . . . 25 . 1 190 100 73 280 Longest Duration 90 | . . . . . . . . . . 25 . 1 43 38 34 90 Martial Activations . | . . . . . . . . . . . . . . . . . Shielding Activations . | . . . . . . . . . . . . . . . . . Robots Disrupted . | . . . . . . . . . . . . . . . . . Combat Hostiles . | . . . . . . . . . . . . . . . . . Robots Corrupted 7 | . . . . . . . . . . . . 1 4 . . 2 Combat Hostiles 3 | . . . . . . . . . . . . . 1 . . 2 Parts Fried 16 | . . . . . . . . . . . . 3 13 . . . Impact Corruptions 14 | . . . . . . . . . . . . . 10 . . 4 Robots Melted 34 | . . . 3 . . 1 1 . . . . . 7 4 5 13 Combat Hostiles 30 | . . . 3 . . 1 1 . . . . . 6 4 5 10 Parts Melted 214 | . 2 1 11 2 11 7 11 5 8 1 . 3 45 32 19 56 Heat Transferred 57623 | . 2442 444 3330 962 2849 3774 1184 1073 2294 1443 . 982 14718 5363 5030 11735 Parts Sabotaged 5 | . . . . . . . . . . . . 2 3 . . . Parts Stolen . | . . . . . . . . . . . . . . . . . Parts Stripped . | . . . . . . . . . . . . . . . . . Power Chain Reactions . | . . . . . . . . . . . . . . . . . Alert | -11 -10 -10 -9 -9 -8 -8 -8 -6 -6 -6 -6 -6 -5 -4 -4 -4 ------- Run | Yrd Mat Min Mat Min Mat Sto Rec Fac Ext Cet Arc Hub Fac Fac Was Fac Maximum Alert Level 3 | . . . . . . . . 1 1 . . 2 3 2 . 1 Low Security (%) 67 | 100 100 100 100 100 100 100 100 71 92 100 100 65 16 . 100 61 Level 1 21 | . . . . . . . . 28 7 . . 10 39 82 . 38 Level 2 3 | . . . . . . . . . . . . 23 9 16 . . Level 3 6 | . . . . . . . . . . . . . 34 . . . Level 4 . | . . . . . . . . . . . . . . . . . Level 5 . | . . . . . . . . . . . . . . . . . High Security . | . . . . . . . . . . . . . . . . . Max Security . | . . . . . . . . . . . . . . . . . Peak Influence 868 | . 160 39 143 147 122 96 56 350 283 150 197 641 868 480 160 343 Initial 412 | . . 9 . . 53 45 16 350 20 60 26 58 289 412 160 . Average 176 | . 78 10 48 23 36 46 11 99 86 80 74 217 465 322 49 168 Influence Increases 8211 | . 494 70 379 254 329 361 262 528 889 307 201 784 1710 610 2 1031 Destroy 0b10 Robot/C 4660 | . 380 60 240 200 240 240 100 80 500 160 100 180 1060 360 . 760 Destroy 0b10 Robot/NC 335 | . 15 . 30 5 5 25 . 10 20 10 . 50 120 10 . 35 Destroy Leader 906 | . 74 10 100 30 60 44 . 42 44 . . 34 228 82 . 158 Allied During Kill 559 | . . . . . . . . . 266 137 100 56 . . . . Successful Hack 195 | . 25 . 6 . 20 3 11 30 55 . . 21 24 . . . Select Force Hacks 150 | . . . . . . . 150 . . . . . . . . . Disable Machine 405 | . . . . . . 45 . 15 . . . 195 75 75 . . Anti-Garrison Action 150 | . . . . . . . . . . . . 150 . . . . Destroy Structure 351 | . . . 3 19 4 4 1 1 4 . 1 98 128 38 2 48 Advance Influence 350 | . . . . . . . . 350 . . . . . . . . Lose Combat Pursuer 150 | . . . . . . . . . . . . . 75 45 . 30 Influence Decreases 7927 | . 470 94 379 115 360 425 306 486 822 350 100 361 1458 994 460 747 Entered New Map 1441 | . . 15 . . 86 63 28 . 22 49 40 109 301 430 298 . Time Decay 5006 | . 460 79 329 115 244 342 278 386 367 214 40 222 727 514 162 527 Search Patrol Dispatched 100 | . . . . . . . . 100 . . . . . . . . Lost Part 830 | . 10 . 40 . 30 20 . . . . . 30 430 50 . 220 Lost Ally 277 | . . . 10 . . . . . 160 87 20 . . . . . Purge Threat 273 | . . . . . . . . . 273 . . . . . . . Squads Dispatched 55 | . 5 . 2 . 2 3 . 3 2 . . 6 16 4 . 12 Investigation 9 | . 3 . 1 . 1 . . . 2 . . . 2 . . . Extermination 16 | . . . . . . . . 2 . . . 1 6 3 . 4 Reinforcement 20 | . 2 . 1 . 1 1 . 1 . . . 2 3 1 . 8 Assault 4 | . . . . . . . . . . . . 2 2 . . . Garrison 6 | . . . . . . 2 . . . . . 1 3 . . . Intercept . | . . . . . . . . . . . . . . . . . Searches Triggered 1 | . . . . . . . . 1 . . . . . . . . Construction Impeded 2 | . . . . . . . . . . . . . 1 1 . . Haulers Reinforced 4 | . . . . . . . . 1 . . . 1 . . . 2 Active Scanning Responses . | . . . . . . . . . . . . . . . . . Cargo Convoy Interrupts . | . . . . . . . . . . . . . . . . . Stealth | -11 -10 -10 -9 -9 -8 -8 -8 -6 -6 -6 -6 -6 -5 -4 -4 -4 --------- Run | Yrd Mat Min Mat Min Mat Sto Rec Fac Ext Cet Arc Hub Fac Fac Was Fac Distress Signals 22 | . . . 4 . 2 3 . . 1 2 . 2 2 3 . 3 Communications Jammed 1 | . . . . . . . . . . . . . . . . 1 Distress Signals 1 | . . . . . . . . . . . . . . . . 1 Times Spotted 320 | . 31 5 19 9 14 15 3 4 24 12 . 29 74 26 6 49 Peak Tracking Total 15 | . 4 3 4 4 5 4 1 1 4 5 . 15 6 6 2 6 Tactical Retreats 10 | . 2 . . . . . . . . . . . 5 1 . 2 Traps | -11 -10 -10 -9 -9 -8 -8 -8 -6 -6 -6 -6 -6 -5 -4 -4 -4 ------- Run | Yrd Mat Min Mat Min Mat Sto Rec Fac Ext Cet Arc Hub Fac Fac Was Fac Traps Triggered 12 | . 3 . 1 . 1 . . 2 2 . . . 1 2 . . Indirectly . | . . . . . . . . . . . . . . . . . Trap Hack Attempts . | . . . . . . . . . . . . . . . . . Triggered . | . . . . . . . . . . . . . . . . . Disarmed . | . . . . . . . . . . . . . . . . . Reprogrammed . | . . . . . . . . . . . . . . . . . Reused . | . . . . . . . . . . . . . . . . . Traps Extracted . | . . . . . . . . . . . . . . . . . Installed . | . . . . . . . . . . . . . . . . . Triggered . | . . . . . . . . . . . . . . . . . Machines | -11 -10 -10 -9 -9 -8 -8 -8 -6 -6 -6 -6 -6 -5 -4 -4 -4 ---------- Run | Yrd Mat Min Mat Min Mat Sto Rec Fac Ext Cet Arc Hub Fac Fac Was Fac Machines Disabled 28 | . . . . . . 3 . 1 . . . 14 5 5 . . Max in Single Turn 9 | . . . . . . 1 . 1 . . . 9 1 2 . . Garrison Access 4 | . . . . . . . . 1 . . . 1 1 . . 1 Network Hub 1 | . . . . . . . . . . . . 1 . . . . Machines Repaired . | . . . . . . . . . . . . . . . . . Machines Dismantled . | . . . . . . . . . . . . . . . . . Machines Sabotaged . | . . . . . . . . . . . . . . . . . Overloaded Fab Kills . | . . . . . . . . . . . . . . . . . Hacking | -11 -10 -10 -9 -9 -8 -8 -8 -6 -6 -6 -6 -6 -5 -4 -4 -4 --------- Run | Yrd Mat Min Mat Min Mat Sto Rec Fac Ext Cet Arc Hub Fac Fac Was Fac Machines Accessed 72 | . 7 . 6 . 5 3 11 4 15 1 1 4 11 1 . 3 Terminals 50 | . 5 . 4 . 4 3 6 1 15 1 . 4 4 1 . 2 Fabricators 1 | . . . . . . . . . . . . . 1 . . . Repair Stations . | . . . . . . . . . . . . . . . . . Recycling Units 12 | . 2 . 1 . . . 5 2 . . . . 2 . . . Scanalyzers 4 | . . . 1 . 1 . . . . . . . 2 . . . Garrison Access 4 | . . . . . . . . 1 . . . . 2 . . 1 Total Hacks 199 | . 22 . 13 . 11 6 27 6 37 1 25 6 35 2 . 8 Successful 95 | . 9 . 6 . 4 3 12 3 15 . 25 2 15 . . 1 Failed 102 | . 13 . 6 . 6 3 15 3 22 1 . 4 20 2 . 7 Catastrophic 23 | . 1 . 1 . . . 3 1 2 1 . 1 9 2 . 2 Database Lockouts 2 | . . . 1 . 1 . . . . . . . . . . . Manual 96 | . 16 . 10 . 9 3 28 3 7 1 . 5 8 2 . 4 Terminals 125 | . 19 . 10 . 9 6 21 3 37 1 . 6 7 2 . 4 Fabricators 2 | . . . . . . . . . . . . . 2 . . . Repair Stations . | . . . . . . . . . . . . . . . . . Recycling Units 16 | . 3 . 2 . . . 6 2 . . . . 3 . . . Scanalyzers 20 | . . . 1 . 2 . . . . . . . 17 . . . Garrison Access 11 | . . . . . . . . 1 . . . . 6 . . 4 Terminal Hacks 53 | . 5 . 2 . 1 2 4 1 12 . 25 1 . . . . Record 25 | . . . . . . . . . . . 25 . . . . . Part Schematic 1 | . . . . . . . 1 . . . . . . . . . Robot Analysis 7 | . 3 . 1 . . . 3 . . . . . . . . . Prototype ID Bank 1 | . . . . . . . . . 1 . . . . . . . Open Door 11 | . . . . . . 2 . . 9 . . . . . . . Level Access Points 1 | . . . . . . . . . . . . 1 . . . . Branch Access Points 3 | . . . 1 . 1 . . 1 . . . . . . . . Unreport Threat 2 | . . . . . . . . . 2 . . . . . . . Zone Layout 2 | . 2 . . . . . . . . . . . . . . . Fabricator Hacks 1 | . . . . . . . . . . . . . 1 . . . Load Schematic 1 | . . . . . . . . . . . . . 1 . . . Repair Station Hacks . | . . . . . . . . . . . . . . . . . Recycling Unit Hacks 1 | . 1 . . . . . . . . . . . . . . . Retrieve Components 1 | . 1 . . . . . . . . . . . . . . . Scanalyzer 13 | . . . . . 1 . . . . . . . 12 . . . Insert Component 2 | . . . . . . . . . . . . . 2 . . . Retrieve Study 11 | . . . . . 1 . . . . . . . 10 . . . Garrison Access Hacks 3 | . . . . . . . . 1 . . . . 1 . . 1 Seal Access 3 | . . . . . . . . 1 . . . . 1 . . 1 Unauthorized Hacks 24 | . 3 . 4 . 2 1 8 1 3 . . 1 1 . . . Terminals 18 | . 3 . 4 . 2 1 3 1 3 . . 1 . . . . Assimilate 1 | . . . 1 . . . . . . . . . . . . . Botnet 17 | . 3 . 3 . 2 1 3 1 3 . . 1 . . . . Fabricators 1 | . . . . . . . . . . . . . 1 . . . Recompile 1 | . . . . . . . . . . . . . 1 . . . Repair Stations . | . . . . . . . . . . . . . . . . . Recycling Units 5 | . . . . . . . 5 . . . . . . . . . Tunnel 5 | . . . . . . . 5 . . . . . . . . . Scanalyzers . | . . . . . . . . . . . . . . . . . Garrison Access . | . . . . . . . . . . . . . . . . . Data Cores Recovered 1 | . . . . . . . . . . . . . 1 . . . Used . | . . . . . . . . . . . . . . . . . Hacking Detections 50 | . 6 . 5 . 5 1 5 3 8 1 . 4 9 1 . 2 Full Trace Events 8 | . 3 . . . . . 2 . 2 . . . 1 . . . Feedback Events 1 | . . . . . . . 1 . . . . . . . . . Corruption 1 | . . . . . . . 1 . . . . . . . . . Feedback Blocked . | . . . . . . . . . . . . . . . . . Robot Schematics Acquired . | . . . . . . . . . . . . . . . . . Robots Built . | . . . . . . . . . . . . . . . . . Authchips . | . . . . . . . . . . . . . . . . . Time . | . . . . . . . . . . . . . . . . . Total Robot Build Rating . | . . . . . . . . . . . . . . . . . Part Schematics Acquired 1 | . . . . . . . 1 . . . . . . . . . Parts Built . | . . . . . . . . . . . . . . . . . Authchips . | . . . . . . . . . . . . . . . . . Time . | . . . . . . . . . . . . . . . . . Total Part Build Rating . | . . . . . . . . . . . . . . . . . Part Studies Acquired 11 | . . . . . 1 . . . . . . . 10 . . . Parts Repaired . | . . . . . . . . . . . . . . . . . Time . | . . . . . . . . . . . . . . . . . Parts Recycled . | . . . . . . . . . . . . . . . . . Recycled Matter . | . . . . . . . . . . . . . . . . . Retrieved Matter . | . . . . . . . . . . . . . . . . . Retrieved Components 9 | . 9 . . . . . . . . . . . . . . . Parts Scanalyzed 1 | . . . . . . . . . . . . . 1 . . . Part Schematics Acquired . | . . . . . . . . . . . . . . . . . Parts Damaged 1 | . . . . . . . . . . . . . 1 . . . Bothacking | -11 -10 -10 -9 -9 -8 -8 -8 -6 -6 -6 -6 -6 -5 -4 -4 -4 ------------ Run | Yrd Mat Min Mat Min Mat Sto Rec Fac Ext Cet Arc Hub Fac Fac Was Fac Used RIF Installer . | . . . . . . . . . . . . . . . . . Robots Hacked . | . . . . . . . . . . . . . . . . . Non-combat . | . . . . . . . . . . . . . . . . . Combat . | . . . . . . . . . . . . . . . . . Robot Hacks Applied . | . . . . . . . . . . . . . . . . . Relay Couplers Released . | . . . . . . . . . . . . . . . . . Fabnet Peak Effective % . | . . . . . . . . . . . . . . . . . Robots Rewired 6 | . . . . . . . . . 6 . . . . . . . Allies Hacked . | . . . . . . . . . . . . . . . . . Hacks Repelled . | . . . . . . . . . . . . . . . . . Allies | -11 -10 -10 -9 -9 -8 -8 -8 -6 -6 -6 -6 -6 -5 -4 -4 -4 -------- Run | Yrd Mat Min Mat Min Mat Sto Rec Fac Ext Cet Arc Hub Fac Fac Was Fac Total Allies 25 | . . . 1 . . . . . 19 5 . . . . . . Largest Group 10 | . . . 1 . . . . . 10 10 9 1 . . . . Highest-Rated Group 749 | . . . 10 . . . . . 448 749 590 96 . . . . Highest-Rated Ally 159 | . . . 10 . . . . . 159 159 96 96 . . . . Total Orders 1 | . . . . . . . . . . . 1 . . . . . GUARD 1 | . . . . . . . . . . . 1 . . . . . Ally Attacks 215 | . . . . . . . . . 133 47 21 14 . . . . Total Damage 4454 | . . . . . . . . . 1969 1160 791 534 . . . . Kills 28 | . . . . . . . . . 14 6 5 3 . . . . Allies Corrupted 1 | . . . . . . . . . . . . 1 . . . . Allies Melted . | . . . . . . . . . . . . . . . . . Intel | -11 -10 -10 -9 -9 -8 -8 -8 -6 -6 -6 -6 -6 -5 -4 -4 -4 ------- Run | Yrd Mat Min Mat Min Mat Sto Rec Fac Ext Cet Arc Hub Fac Fac Was Fac Active Infowar (turns) 5730 | . 468 . . . . . . . . . . . 2010 1173 556 1523 Sensors 5220 | . . . . . . . . . . . . . 2010 1173 556 1481 Structural 468 | . 468 . . . . . . . . . . . . . . . Jamming 675 | . . . . . . . . . . . . . . . . 675 Robot Analysis Total 7 | . 3 . 1 . . . 3 . . . . . . . . . Derelict Logs Recovered 1 | . . 1 . . . . . . . . . . . . . . Drone Launches . | . . . . . . . . . . . . . . . . . Drone Recoveries . | . . . . . . . . . . . . . . . . . Exploration | -11 -10 -10 -9 -9 -8 -8 -8 -6 -6 -6 -6 -6 -5 -4 -4 -4 ------------- Run | Yrd Mat Min Mat Min Mat Sto Rec Fac Ext Cet Arc Hub Fac Fac Was Fac Turns Passed 17587 | 80 1190 355 1141 581 818 768 1506 1177 1362 456 86 466 3529 1417 558 2097 Spaces Moved 7761 | 45 548 232 563 237 300 252 641 700 683 201 41 245 1532 609 227 705 Core 38 | 4 . . . . . . . . . . . . . . . 34 Treads 6411 | 41 477 . 245 237 300 252 641 700 683 201 41 245 897 602 227 622 Legs 46 | . . . . . . . . . . . . . . . . 46 Wheels 1266 | . 71 232 318 . . . . . . . . . 635 7 . 3 Hover . | . . . . . . . . . . . . . . . . . Flight . | . . . . . . . . . . . . . . . . . Fastest Speed 50 | 50 140 140 125 225 225 225 228 152 155 160 160 160 93 120 160 50 Average Speed 169 | 152 157 140 168 225 225 226 228 154 159 160 160 160 150 159 160 163 Slowest Speed 1450 | 160 215 140 225 225 225 228 228 155 160 160 160 160 320 240 160 1450 Overloaded Moves . | . . . . . . . . . . . . . . . . . Propulsion Burnouts . | . . . . . . . . . . . . . . . . . Robots Hopped . | . . . . . . . . . . . . . . . . . Potential Cave-ins . | . . . . . . . . . . . . . . . . . Cave-ins Triggered . | . . . . . . . . . . . . . . . . . Exploration Rate (%) 49 | 4 81 60 43 60 32 39 95 19 86 56 64 26 37 19 100 16 Regions Visited 16 Branch Regions 8 Pre-discovered Areas 5 | . . . . . . . 5 . . . . . . . . . Known Exits Taken 5 | . . . 1 . 1 . . 1 . . . 1 1 . . . Unknown Exits Taken 9 | 1 1 1 . 1 . 1 1 . 1 1 1 . . . . . Scrap Searched 2 | . . 1 . 1 . . . . . . . . . . . . Spaces Dug 51 | . . . . . . . . . . . . . 25 10 . 16 Terrain Destroyed 278 | . . . . 24 . . . . . . . 156 58 19 1 20 Melee 4 | . . . . . . . . . . . . . 4 . . . Projectile 85 | . . . . . . . . . . . . 1 45 19 1 19 AOE 189 | . . . . 24 . . . . . . . 155 9 . . 1 Terrain Rammed . | . . . . . . . . . . . . . . . . . Walls Destroyed . | . . . . . . . . . . . . . . . . . Machines Disabled . | . . . . . . . . . . . . . . . . . Actions | -11 -10 -10 -9 -9 -8 -8 -8 -6 -6 -6 -6 -6 -5 -4 -4 -4 --------- Run | Yrd Mat Min Mat Min Mat Sto Rec Fac Ext Cet Arc Hub Fac Fac Was Fac Total 10697 | 54 739 248 682 256 370 359 665 786 899 311 62 277 2293 941 365 1390 Wait 1321 | . 67 3 34 . 17 27 12 14 71 46 22 2 379 173 72 382 Move 7746 | 44 547 231 562 236 299 251 640 699 682 200 40 244 1531 609 226 705 Hop . | . . . . . . . . . . . . . . . . . Pick Up 170 | 4 17 6 23 1 6 6 2 18 7 12 . . 35 16 5 12 Fast Attach 107 | 6 4 . 2 . 2 8 . 4 6 7 . 2 38 8 7 13 Attach 87 | . 1 . 8 . 3 3 . 4 . . . 6 37 11 4 10 Detach 21 | . . . . . . 1 . . . . . 2 9 2 2 5 Swap 118 | . 10 1 2 4 3 3 . 8 7 5 . 1 21 19 5 29 Drop 186 | . 15 . 13 1 6 14 1 25 18 26 . . 14 24 17 12 Fire 710 | . 78 7 38 14 34 46 10 14 29 15 . 18 207 79 27 94 Melee 22 | . . . . . . . . . . . . . 22 . . . Ram . | . . . . . . . . . . . . . . . . . Kick 85 | . . . . . . . . . . . . . . . . 85 Crush 45 | . . . . . . . . . . . . 2 . . . 43 Escape Stasis . | . . . . . . . . . . . . . . . . . Rewire 79 | . . . . . . . . . 79 . . . . . . . Trap . | . . . . . . . . . . . . . . . . . Miscellaneous . | . . . . . . . . . . . . . . . . . Route ------- -11/Scrapyard -10/Materials (discovered 5 exits: *Mat x3 / [*Min] / [Sub]) -10/Mines -9/Materials (discovered 3 exits: *Mat / *Min x2) -9/Mines (discovered 2 exits: *Mat x2) -8/Materials (discovered 2 exits: [*Fac] / *Sto) -8/Storage -8/Recycling -6/Factory (discovered 5 exits: *Fac / Low x2 / *Ext x2) -6/Extension (discovered 2 exits: *Fac / *Cet) -6/Cetus (discovered 2 exits: *Fac / *Arc) -6/Archives -6/Hub_04(d) (discovered 4 exits: *Fac x4) -5/Factory -4/Factory -4/Waste -4/Factory History --------- Turn | Location | Event 32 | -11/Scrapyard | Discovered new exit (range 15) 81 | -11/Scrapyard | Entered Materials 132 | -10/Materials | Met 8R-AWN 275 | -10/Materials | Discovered new exit (range 9) 326 | -10/Materials | Build established: Mutant 359 | -10/Materials | Discovered new exit (range 14) 359 | -10/Materials | Discovered new exit (range 11) 461 | -10/Materials | Discovered new exit (range 7) 620 | -10/Materials | Core integrity fell below 50% 881 | -10/Materials | Derelicts attacked the area 1103 | -10/Materials | Discovered new exit (range 16) 1271 | -10/Materials | Entered Mines 1273 | -10/Mines | Followed 8R-AWN into the Mines 1447 | -10/Mines | Build established: Scavenger-Mutant 1506 | -10/Mines | Discovered new exit (range 5) 1569 | -10/Mines | Found DCF Scrap (12 items) 1576 | -10/Mines | Learned Materials terminal intel 1626 | -10/Mines | Entered Materials 1626 | -9/Materials | Evolved 2 slots: Propulsion x1, Weapon x1 1627 | -9/Materials | Loaded intel: 12 terminal locations 1928 | -9/Materials | Build established: Scavenger-Gunner 1963 | -9/Materials | Central database locked down 2052 | -9/Materials | Discovered new exit (range 14) 2301 | -9/Materials | Discovered new exit (range 12) 2443 | -9/Materials | Identified exit to Mines 2491 | -9/Materials | Build established: Gunner 2767 | -9/Materials | Entered Mines 2777 | -9/Mines | Met a Derelict bent on vengeance 2800 | -9/Mines | Assembled infested the area 2805 | -9/Mines | Assisted by a Guerilla fighting off Assembled 2962 | -9/Mines | Discovered new exit (range 8) 2969 | -9/Mines | Received a Rocket Launcher from a helpful Derelict 3085 | -9/Mines | Discovered new exit (range 6) 3348 | -9/Mines | Entered Materials 3348 | -8/Materials | Evolved 2 slots: Propulsion x1, Utility x1 3851 | -8/Materials | Identified exit to Storage 3881 | -8/Materials | Central database locked down 3903 | -8/Materials | Discovered new exit (range 8) 4166 | -8/Materials | Entered Storage 4696 | -8/Storage | Found Prototype Processor 4696 | -8/Storage | Identified Exp. Targeting Computer 4826 | -8/Storage | Garrison activated, responded to threat 4925 | -8/Storage | Used back door to open Recycling access 4925 | -8/Storage | Discovered new exit (range 5) 4934 | -8/Storage | Entered Recycling 5613 | -8/Recycling | Discovered new exit (range 15) 5938 | -8/Recycling | Scanned before Scraplab entrance 6440 | -8/Recycling | Entered Factory 6440 | -6/Factory | Evolved 4 slots: Propulsion x2, Utility x2 6790 | -6/Factory | Search patrols dispatched 6925 | -6/Factory | Identified exit to Lower Caves 6925 | -6/Factory | Identified exit to Extension 7431 | -6/Factory | Discovered new exit (range 13) 7617 | -6/Factory | Entered Extension 7710 | -6/Extension | Rescued a captive Derelict 7755 | -6/Extension | Rescued a captive Derelict 7824 | -6/Extension | Rescued a captive Derelict 7824 | -6/Extension | Rescued a captive Derelict 7863 | -6/Extension | Rescued a captive Derelict 7865 | -6/Extension | Rescued a captive Derelict 7891 | -6/Extension | Rescued a captive Derelict 8087 | -6/Extension | Build established: Scavenger-Gunner 8095 | -6/Extension | Rescued a captive Derelict 8096 | -6/Extension | Rescued a captive Derelict 8333 | -6/Extension | Destroyed B-75 Beast 8342 | -6/Extension | Spotted B-75 Beast 8366 | -6/Extension | Destroyed B-75 Beast 8390 | -6/Extension | Lost 5 allies 8497 | -6/Extension | Rescued a captive Derelict 8501 | -6/Extension | Rescued a captive Derelict 8703 | -6/Extension | Lost 3 allies 8855 | -6/Extension | Rescued a captive Derelict 8901 | -6/Extension | Rescued A7 8930 | -6/Extension | Discovered new exit (range 10) 8932 | -6/Extension | Discovered new exit (range 6) 8979 | -6/Extension | Entered Cetus 8979 | -6/Cetus | Accompanied by 10 allies (A7) 8984 | -6/Cetus | Acquired a Cetus Manufacturing Module code from A7 8999 | -6/Cetus | Spotted Cetus Guard 8999 | -6/Cetus | Spotted Cetus Guard 9002 | -6/Cetus | Spotted Cetus Guard 9002 | -6/Cetus | Spotted Cetus Guard 9005 | -6/Cetus | Allies destroyed Cetus Guard 9013 | -6/Cetus | Destroyed Cetus Guard 9016 | -6/Cetus | Allies destroyed Cetus Guard 9016 | -6/Cetus | Destroyed Cetus Guard 9042 | -6/Cetus | Lost 4 allies 9043 | -6/Cetus | System corruption reached 10% 9133 | -6/Cetus | Started Cetus Manufacturing Module 9158 | -6/Cetus | Manufactured an Enhanced Grunt 9162 | -6/Cetus | Discovered new exit (range 15) 9183 | -6/Cetus | Manufactured an Enhanced Grunt 9192 | -6/Cetus | Spotted Cetus Guard 9192 | -6/Cetus | Spotted Cetus Guard 9195 | -6/Cetus | Spotted Cetus Guard 9196 | -6/Cetus | Spotted Cetus Guard 9202 | -6/Cetus | Destroyed Cetus Guard 9208 | -6/Cetus | Manufactured an Enhanced Grunt 9210 | -6/Cetus | Allies destroyed Cetus Guard 9217 | -6/Cetus | Allies destroyed Cetus Guard 9223 | -6/Cetus | Allies destroyed Cetus Guard 9233 | -6/Cetus | Manufactured an Enhanced Grunt 9245 | -6/Cetus | Discovered new exit (range 16) 9253 | -6/Cetus | Met Revision 17 9258 | -6/Cetus | Manufactured an Enhanced Grunt 9338 | -6/Cetus | Build established: Scavenger-Tank 9435 | -6/Cetus | Entered Archives 9435 | -6/Archives | Accompanied by 10 allies (A7) 9456 | -6/Archives | Met Zhirov 9462 | -6/Archives | Reinforcements dispatched to Archives 9474 | -6/Archives | Read partially decrypted archive contents 9477 | -6/Archives | Discovered new exit (range 15) 9507 | -6/Archives | Reinforcements dispatched to Archives 9521 | -6/Archives | Entered Hub_04(d) 9521 | -6/Hub_04(d) | Accompanied by 1 ally 9800 | -6/Hub_04(d) | Discovered new exit (range 13) 9801 | -6/Hub_04(d) | Identified exit to Factory 9876 | -6/Hub_04(d) | Network Hub disabled 9876 | -6/Hub_04(d) | Garrison activated, responded to threat 9907 | -6/Hub_04(d) | Spotted Lightning 9907 | -6/Hub_04(d) | Spotted Lightning 9907 | -6/Hub_04(d) | Spotted Lightning 9984 | -6/Hub_04(d) | System corruption reached 30% 9987 | -6/Hub_04(d) | Entered Factory 9987 | -5/Factory | Evolved 2 slots: Power x1, Utility x1 11139 | -5/Factory | Lost 3 parts (2n1w) 12087 | -5/Factory | First assault squad dispatched 12186 | -5/Factory | Garrison activated, responded to threat 12244 | -5/Factory | Lost 3 parts (3n) 12472 | -5/Factory | Lost 14 parts (1p4n6u3w) 12682 | -5/Factory | System corruption reached 10% 12766 | -5/Factory | Build established: Scavenger-Skirmisher 13159 | -5/Factory | Lost 14 parts (2p6n5u1w) 13290 | -5/Factory | Build established: Scavenger-Mutant 13513 | -5/Factory | Discovered new exit (range 4) 13515 | -5/Factory | Identified exit to Factory 13516 | -5/Factory | Entered another Factory area 13516 | -4/Factory | Evolved 2 slots: Utility x1, Weapon x1 13818 | -4/Factory | Build established: Scavenger-Tank 13929 | -4/Factory | Found Unknown Device 13929 | -4/Factory | Identified Quantum Capacitor 14697 | -4/Factory | Destroyed 7 combat bots 14933 | -4/Factory | Manually triggered Chute Trap 14933 | -4/Factory | Sucked down chute 14933 | -4/Factory | Entered Waste 14948 | -4/Waste | Spotted C-40 Crusher 14956 | -4/Waste | Destroyed C-40 Crusher 15005 | -4/Waste | Destroyed C-40 Crusher 15005 | -4/Waste | Spotted C-40 Crusher 15012 | -4/Waste | Destroyed C-40 Crusher 15025 | -4/Waste | Spotted C-40 Crusher 15071 | -4/Waste | Destroyed C-40 Crusher 15080 | -4/Waste | Destroyed C-40 Crusher 15097 | -4/Waste | Spotted C-40 Crusher 15112 | -4/Waste | Destroyed C-40 Crusher 15203 | -4/Waste | Discovered new exit (range 16) 15243 | -4/Waste | Build established: Scavenger-Skirmisher 15409 | -4/Waste | Found Damper Plating 15490 | -4/Waste | Identified exit to Factory 15491 | -4/Waste | Entered Factory 16511 | -4/Factory | Build established: Scavenger-Tank 16915 | -4/Factory | Lost 4 parts (1p2n1w) 17203 | -4/Factory | Lost 12 parts (2p3n4u3w) 17229 | -4/Factory | Core integrity fell below 50% 17449 | -4/Factory | Core integrity fell below 20% 17471 | -4/Factory | Build established: Mutant 17573 | -4/Factory | Released all parts (5) 17588 | -4/Factory | Destroyed by P-70 Sage with High-powered Shock Rifle Last Messages --------------- 17498_ Discarded Enh. Flexi-carbon Leg. 17498_ Dropped Enh. Flexi-carbon Leg. 17500_ R-10 Processor collects Com. Wheel+. 17500_ K-01 Serf collects debris. 17503_ R-10 Processor collects Com. Wheel+. 17509_ Dropped Enh. Flexi-carbon Leg. 17509_ R-10 Processor collects Com. Wheel+. 17509_ K-01 Serf collects debris. 17513_ R-10 Processor collects Com. Wheel+. 17567_ Acquired Com. Wheel+. 17570_ Acquired 8 matter. 17571_ Acquired 2 matter. 17573_ Adv. Variable Charge Gun destroyed. 17573_ Released Adv. Heat Sink. 17573_ Released Graphene Brace. 17573_ Released Huge Storage Unit. 17573_ Released Adv. Signal Interpreter. 17573_ Released Com. Wheel+. 17581_ System corrupted: Matter fused (-6). 17585_ Acquired 6 matter. Map ----- +----------------------------------------------------+ | ????????????????????????????????????????????# "" | | ????????????????????????????????????????????# " | | ????????????????????????????????????????????# " | | ????????????????????????????????????????????# | | ????????????????????????????????????????????# | | ???????????????????????????????????????????## | | ??????????????????????????##????????????########## | | ??????????????????????????#"############# | | ???????????????????????????# # | | ???????????????????????????# # | | ???????????????????????????# # % | | ???????????????????????????# # | | ???????????????????????????# # #### | | ???????????????????????????# # #%% | | ???????????????????????????# # %#%%% | | ???????????????????????????# # %%%/ % | | ???????????????????????????# # %#%= | | ??????###################### # #%%! | | ??????# # + # #%%! | | ?? # # # # #=%! | | ??# # # ##########+### #%%! | | ??# # # % % #%%! | | ??# # =# % % ^ p #%[! | | ??# + + % % ^ #!=! | | ??# # ! # ^ # | | ??# # # @ ^ #### | | ??# # **/ ####+#############+#########??? | | ??# # *// #?? ????????????????????????? | | ??# # */ #?? [??????????????????????? | | ??# # ##? ? #?????????????????????? | | ??# ############### ?#?????????????????????? | | ?## #" ???????????????????????? | | ## # ???????????????????????? | | #!=% #% ???????????????????????? | | % +* #% ??????????????????????? | | # # % ??????????????????????? | | ## # # ????????????????????????? | | ?### ### # ?????????????????????????? | | ???# ### #% ?????????????????????????? | | ???# ### # ?????????????????????????? | | ???# ##" ###??????????????????????????? | | ???# ####"""" "##"###????????????????????????????? | | ???#+#??###########??????????????????????????????? | | ????????????????????????????????????????????? | | ?? ????????????????????????????????????????????? | | ??? ????????????????????????????????????????????? | | ??? ????????????????????????????????????????????? | | ????"????????????????????????????????????????????? | | ????"????????????????????????????????????????????? | | ?????????????????????????????????????????????????? | +----------------------------------------------------+ Best States ------------- Heat Dissipation 139 Coolant Potential 65 Energy Generation 45 Energy Capacity 600 Matter Stores 300 Matter Capacity 300 Sight Range 16 Robot Scan Range 16 Terrain Scan Density 10 Jamming Range 12 Armor Coverage 1600 Resistance: TH 30 Resistance: EM 90 Evasion (%) 50 Targeting Accuracy 12 Recoil Reduction 6 Particle Charging 20 Offensive Hacking 10 Defensive Hacking 12 Authchip Count 1 Item Schematics ----------------- Cryofiber Web | -8/Recycling | Hacked Robot Schematics ------------------ None Fabricated ------------ Nothing Repaired ---------- Nothing Studied --------- Particle Gun | -8/Materials | Hacked Wave Gun | -5/Factory | Hacked Wheel | -5/Factory | Hacked Com. Wheel | -5/Factory | Hacked Thermic Laser | -5/Factory | Hacked Carbon-fiber Leg | -5/Factory | Hacked Neutrino Core | -5/Factory | Hacked Hvy. Laser | -5/Factory | Hacked Rnf. Fission Core | -5/Factory | Hacked Rocket Launcher | -5/Factory | Hacked Imp. Treads | -5/Factory | Hacked Alien Tech Used ----------------- None Achievements -------------- Bending The Rules Follow The Leader Challenges ------------ None Game ------ Seed CarbideStorageArchive Manual? 0 Play Time 02:52:56 Cumulative 216.4 hours Start 2026.08.10 @ 03:34:46 End 2026.08.10 @ 13:38:47 Sessions 3 Manual Loads 0 Difficulty Rogue Special Mode None Game No. 222 Rogue 168 Adventurer 54 Explorer 0 Win Type - Total 9 Types 5/0/1/1/0/0/0/1/0/1 Lore% 73 Gallery% 61 Achievement% 58 Wizard Run 0 Options --------- Layout 1 ASCII 0 Keyboard 0 Movement Mouse Keybinds 1 Fullscreen 2 Font 32/Tamsyn Map View 50x35 Zoom Use 0% Tactical HUD 1 Map Filters NONE Filters NONE Steam 1 RUN: 8420e03b-415c-4018-b544-dbf4f7e1d5b6